bitfinex-derivatives/quotes_ETHF0:USTF0_20260115
["timestamp","ask_amount","ask_price","bid_price","bid_amount"]
[1768452963991,0.15111,3309.4,3308.1,0.00453315]
[1768452964194,2.20935153,3309.3,3308.1,0.00453315]
[1768452964394,0.15113,3309.1,3308.1,0.00453315]
[1768452964596,0.84007873,3309.0,3308.1,0.00453315]
[1768452964801,1.3692928,3309.1,3308.1,0.00453315]
[1768452965002,0.83993151,3309.0,3308.1,0.00453315]
[1768452965204,1.3692928,3309.1,3308.1,0.00453315]
[1768452965501,0.8395233,3309.0,3308.1,0.00453315]
[1768452965714,1.3692928,3309.1,3308.1,0.00453315]
[1768452965902,0.83952331,3309.0,3308.1,0.00453315]
[1768452966105,2.05769532,3308.9,3307.5,0.1420631]
[1768452966302,1.2181628,3308.9,3307.5,1.3602259]
[1768452966493,1.2181628,3308.9,3307.7,1.2181628]
[1768452967205,0.00453315,3308.6,3307.7,1.2181628]
[1768452968409,0.00453315,3308.6,3307.8,0.00453315]
[1768452974303,0.00453315,3308.6,3307.8,1.22269595]
[1768452975291,0.00453315,3308.6,3307.8,0.00453315]
[1768452976108,1.36262622,3308.3,3306.1,0.13844021]
[1768452976290,6.00453315,3308.6,3306.0,1.2188573]
[1768452976291,0.15117,3308.1,3306.5,0.13844021]
[1768452976498,0.15113,3308.9,3307.8,0.13844021]
[1768452977102,0.15455316,3308.9,3307.8,0.0033463]
[1768452977301,0.14376892,3308.4,3306.0,0.15126]
[1768452977498,0.14376892,3307.9,3306.1,0.13844021]
[1768452977699,0.00453315,3307.6,3307.0,1e-08]
[1768452977897,0.00453315,3307.6,3306.1,0.13844021]
[1768452978093,0.00453315,3307.6,3305.4,1.3701473]
[1768452978094,0.00453315,3307.6,3305.5,0.13844021]
[1768452978400,0.14376892,3307.5,3305.5,0.14155378]
[1768452978805,0.29497892,3307.3,3305.5,0.14155378]
[1768452979010,0.14376892,3307.2,3305.5,0.14155378]
[1768452979507,0.15121,3307.3,3305.5,0.14155378]
[1768452979706,0.00453315,3307.6,3306.1,0.13844021]
[1768452981999,0.29989329,3307.6,3305.7,0.13177932]
[1768452982210,0.1310271,3307.5,3305.7,0.13177932]
[1768452982808,0.15572315,3307.6,3305.8,0.14373144]
[1768452983701,0.28675025,3307.6,3305.8,0.14373144]
[1768452984006,0.1310271,3307.5,3305.8,0.14373144]
[1768452988711,0.2822271,3307.5,3305.8,0.14373144]
[1768452991411,1.2188573,3307.2,3305.8,0.14373144]
[1768452992005,1.2188573,3307.2,3305.5,0.00311357]
[1768452992508,1.22339045,3307.6,3305.5,0.14684501]
[1768452992713,0.15121,3307.3,3305.6,0.14373144]
[1768453004318,0.84211644,3307.2,3305.6,0.14373144]
[1768453004520,0.15121,3307.3,3305.6,0.14373144]
[1768453004721,0.84211644,3307.2,3305.6,0.14373144]
[1768453004923,0.15121,3307.3,3305.6,0.14373144]
[1768453005124,0.84211644,3307.2,3305.6,0.14373144]
[1768453005424,0.84211644,3307.1,3305.6,0.14373144]
[1768453005623,0.15121,3307.3,3305.6,0.14373144]
[1768453005824,0.84291079,3307.2,3305.6,0.14373144]
[1768453006018,0.84291079,3307.1,3305.6,0.14373144]
[1768453006224,0.15121,3307.3,3305.6,0.14373144]
[1768453006427,0.84304445,3307.2,3305.6,0.14373144]
[1768453006620,0.84304445,3307.1,3305.6,0.14373144]
[1768453006826,0.15121,3307.3,3305.6,0.14373144]
[1768453007026,0.84304445,3307.2,3305.6,0.14373144]
[1768453007229,0.84304445,3307.1,3305.6,0.14373144]
[1768453007432,0.84304445,3307.0,3305.6,0.14373144]
[1768453007627,0.84304445,3306.9,3305.6,0.14373144]
[1768453007926,0.15121,3307.3,3305.6,0.14373144]
[1768453008128,0.84465761,3307.2,3305.6,0.14373144]
[1768453008322,0.84465761,3307.1,3305.6,0.14373144]
[1768453008522,0.84465761,3307.0,3305.6,0.14373144]
[1768453008733,0.00453315,3307.6,3305.9,0.14373144]
[1768453008937,0.84474851,3307.5,3305.9,0.14373144]
[1768453009229,0.84474851,3307.4,3305.9,0.14373144]
[1768453009422,0.84474851,3307.3,3305.9,0.14373144]
[1768453009622,0.84474851,3307.2,3305.9,0.14373144]
[1768453009823,0.00453315,3307.6,3305.9,0.14373144]
[1768453010022,0.84464145,3307.5,3305.9,0.14373144]
[1768453010223,0.84464145,3307.4,3305.9,0.14373144]
[1768453010433,0.84464145,3307.3,3305.9,0.14373144]
[1768453010631,0.84464145,3307.2,3305.9,0.14373144]
[1768453010844,0.00453315,3307.6,3305.9,0.14373144]
[1768453011035,0.84462547,3307.5,3305.9,0.14373144]
[1768453011234,0.84462547,3307.4,3305.9,0.14373144]
[1768453011436,0.84462547,3307.3,3305.9,0.14373144]
[1768453011734,0.84462547,3307.2,3305.9,0.14373144]
[1768453011938,0.00453315,3307.6,3305.9,0.14373144]
[1768453012146,0.84460989,3307.5,3305.9,0.14373144]
[1768453012440,0.84460989,3307.4,3305.9,0.14373144]
[1768453012642,0.84460989,3307.3,3305.9,0.14373144]
[1768453012940,0.84460989,3307.2,3305.9,0.14373144]
[1768453013142,0.00453315,3307.6,3305.9,0.14373144]
[1768453013346,0.8445064,3307.5,3305.9,0.14373144]
[1768453013638,0.98348939,3307.4,3305.6,2.83497278]
[1768453013835,0.8445064,3307.3,3305.7,0.14091381]
[1768453014929,1.2188573,3307.1,3305.5,0.00311357]
[1768453015135,0.98348939,3307.0,3305.5,0.00311357]
[1768453015334,0.8445064,3306.9,3305.5,0.00311357]
[1768453016641,0.13898299,3306.8,3305.5,0.00311357]
[1768453016941,0.00453315,3307.6,3305.5,0.00311357]
[1768453016942,2.20242882,3306.7,3305.5,0.00311357]
[1768453017243,0.84458853,3306.6,3305.5,0.00311357]
[1768453017935,0.98357152,3306.6,3305.5,0.00311357]
[1768453018136,0.13898299,3306.5,3305.5,0.00311357]
[1768453018445,0.14203465,3306.5,3305.5,0.00311357]
[1768453019743,0.14203465,3306.5,3304.7,0.14091381]
[1768453020043,0.00453315,3305.9,3304.7,0.14091381]
[1768453020738,0.00453315,3305.9,3304.7,0.14443466]
[1768453022647,0.00305166,3306.5,3304.9,0.14091381]
[1768453023748,0.00453315,3306.0,3305.4,0.00453314]
[1768453024736,0.00305166,3306.5,3305.4,0.14544695]
[1768453025136,0.00305166,3306.5,3305.4,0.00453314]
[1768453025743,0.00453315,3306.3,3305.4,0.00453314]
[1768453035758,0.14351614,3306.3,3304.7,0.00352085]
[1768453035945,0.13898299,3306.2,3304.7,0.00352085]
[1768453036560,1.2188573,3306.1,3304.7,0.00352085]
[1768453036758,1.2188573,3306.1,3305.1,0.00453315]
[1768453037343,1.22132014,3305.5,3305.1,0.00453315]
[1768453037549,1.22132014,3305.7,3304.7,0.00352085]
[1768453038356,1.22132014,3305.9,3304.7,0.14443466]
[1768453038861,0.15126,3306.1,3304.8,1.36223395]
[1768453039462,1.22132014,3306.0,3304.8,0.14091381]
[1768453039647,1.22132014,3305.3,3304.7,0.00352085]
[1768453039850,1.22132014,3305.3,3304.1,0.14091381]
[1768453040151,1.22132014,3305.5,3304.2,1.22132014]
[1768453040554,1.22132014,3305.5,3304.1,0.14091381]
[1768453040754,1.22132014,3305.5,3304.1,1.36493327]
[1768453042964,1.22132014,3305.5,3304.1,0.14361313]
[1768453043461,1.22132014,3305.5,3304.1,1.36493327]
[1768453044347,1.22132014,3305.5,3304.1,0.14361313]
[1768453044549,1.22132014,3305.5,3304.1,1.36493327]
[1768453048464,0.29369002,3305.8,3304.1,1.36493327]
[1768453048667,1.22132014,3305.5,3304.2,0.14157486]
[1768453049363,1.22132014,3305.5,3304.2,1.362895]
[1768453050170,1.22132014,3305.5,3304.2,0.14157486]
[1768453050654,0.14444518,3306.2,3304.9,1.22132014]
[1768453050858,0.00453315,3306.3,3305.1,1.22132014]
[1768453051062,0.84166057,3306.2,3304.9,1.362895]
[1768453051267,1.22132014,3306.2,3304.9,1.362895]
[1768453051567,1.22132014,3306.2,3305.0,0.14157486]
[1768453051863,1.22132014,3306.0,3305.0,0.14157486]
[1768453052080,1.22132014,3306.0,3304.5,1.22132014]
[1768453052081,1.22132014,3305.8,3304.6,0.14157486]
[1768453053059,1.22132014,3305.4,3304.2,0.29292486]
[1768453054253,1.22132014,3305.4,3304.2,1.514245]
[1768453054862,1.22132014,3305.4,3304.2,0.14157486]
[1768453061471,1.22132014,3304.7,3304.1,0.00269932]
[1768453061664,0.14444518,3305.3,3304.1,0.00269932]
[1768453061665,1.22132014,3305.1,3304.1,0.00269932]
[1768453062482,1.36576532,3305.3,3304.1,0.00269932]
[1768453064574,1.22132014,3305.1,3304.1,0.00269932]
[1768453064771,0.14444518,3305.3,3304.1,0.00269932]
[1768453064772,1.22132014,3304.7,3304.1,0.00269932]
[1768453065078,1.36576532,3304.9,3303.6,1.228]
[1768453065271,0.00453315,3304.6,3303.6,1.228]
[1768453065467,0.00453315,3304.6,3303.6,2.44932014]
[1768453065674,0.00453315,3304.6,3303.7,0.14157486]
[1768453065875,0.00453315,3304.6,3303.9,1.22132014]
[1768453066277,0.00453315,3304.6,3303.9,1.22466689]
[1768453066477,0.00453315,3304.6,3303.9,0.00334675]
[1768453079192,1.50378362,3305.5,3304.1,1.35731798]
[1768453079400,0.84167612,3305.4,3304.1,1.35731798]
[1768453079692,1.22132014,3305.3,3304.1,1.35731798]
[1768453079896,1.22132014,3305.3,3303.9,1.22466689]
[1768453080291,0.00453315,3304.9,3303.9,1.22466689]
[1768453082794,0.00453315,3304.9,3303.9,1.36066473]
[1768453084100,0.00453315,3304.9,3303.9,0.13934459]
[1768453084294,0.00453315,3304.9,3304.0,1.22132014]
[1768453086694,0.00453315,3304.9,3303.9,0.13934459]
[1768453086900,0.00453315,3304.9,3303.9,1.36066473]
[1768453087302,1.22132014,3304.6,3303.9,0.00334675]
[1768453087499,1.22132014,3304.8,3303.9,0.00334675]
[1768453087896,0.00453315,3304.9,3303.9,0.00334675]
[1768453088402,0.00453315,3304.9,3303.9,1.22466689]
[1768453089916,0.00453315,3304.9,3303.9,0.00334675]
[1768453090219,0.00453315,3304.9,3303.9,1.22466689]
[1768453092417,0.00453315,3304.9,3303.9,0.00334675]
[1768453093325,0.00453315,3304.9,3304.2,1.22132014]
[1768453093509,1.35249362,3305.6,3304.3,1.22132014]
[1768453093708,0.84430427,3305.5,3304.3,1.22132014]
[1768453093910,1.35249362,3305.6,3304.1,0.13599784]
[1768453093911,0.84430427,3305.4,3304.1,1.35731798]
[1768453094209,0.84430427,3305.3,3304.1,1.35731798]
[1768453094415,0.84430427,3305.2,3304.1,1.35731798]
[1768453094617,0.00453315,3305.0,3304.1,1.35731798]
[1768453096515,0.00453315,3305.0,3304.1,0.13599784]
[1768453101312,0.00453315,3305.0,3303.9,0.00334675]
[1768453102015,0.00453315,3305.0,3304.1,0.00453315]
[1768453104231,0.14499241,3305.0,3303.5,0.1394672]
[1768453105317,0.14499241,3305.0,3303.9,0.00453315]
[1768453107533,0.00453315,3305.0,3303.9,0.00453315]
[1768453109226,0.00453315,3305.0,3303.9,0.14400035]
[1768453114643,0.00453315,3305.0,3303.9,0.00453315]
[1768453118636,0.83746063,3304.9,3303.9,0.00453315]
[1768453118945,0.14499241,3305.0,3303.9,0.00453315]
[1768453119145,0.8374616,3304.9,3303.9,0.00453315]
[1768453119439,0.14499241,3305.0,3303.9,0.00453315]
[1768453119638,0.83739765,3304.9,3303.9,0.00453315]
[1768453119943,0.14499241,3305.0,3303.9,0.00453315]
[1768453120145,0.83739765,3304.9,3303.9,0.00453315]
[1768453120329,0.14499241,3305.0,3303.9,0.00453315]
[1768453120531,0.83733975,3304.9,3303.9,0.00453315]
[1768453120746,0.14499241,3305.0,3303.9,0.00453315]
[1768453120944,0.83733965,3304.9,3303.9,0.00453315]
[1768453121147,0.14045926,3304.9,3303.9,0.00453315]
[1768453122433,1.2262071,3305.0,3303.9,0.00453315]
[1768453122646,0.83720578,3304.9,3303.9,0.00453315]
[1768453122945,1.2262071,3305.0,3303.9,0.00453315]
[1768453123135,0.83720594,3304.9,3303.9,0.00453315]
[1768453123335,1.2262071,3305.0,3303.9,0.00453315]
[1768453123636,0.83714688,3304.9,3303.9,0.00453315]
[1768453123830,1.2262071,3305.0,3303.9,0.00453315]
[1768453124038,0.83714688,3304.9,3303.9,0.00453315]
[1768453124244,1.2262071,3305.0,3303.9,0.00453315]
[1768453124444,0.83711391,3304.9,3303.9,0.00453315]
[1768453124743,1.2262071,3305.0,3303.9,0.00453315]
[1768453124941,0.83711391,3304.9,3303.9,0.00453315]
[1768453125150,1.2262071,3305.0,3303.9,0.00453315]
[1768453125337,0.83708999,3304.9,3303.9,0.00453315]
[1768453125537,1.2262071,3305.0,3303.9,0.00453315]
[1768453125839,0.83708999,3304.9,3303.9,0.00453315]
[1768453126143,0.00453315,3305.0,3303.9,0.00453315]
[1768453126442,0.83707779,3304.9,3303.9,0.00453315]
[1768453126644,0.00453315,3305.0,3303.9,0.00453315]
[1768453126844,0.83707779,3304.9,3303.9,0.00453315]
[1768453127038,0.00453315,3305.0,3303.9,0.00453315]
[1768453127240,0.83707779,3304.9,3303.9,0.00453315]
[1768453127441,0.00453315,3305.0,3303.9,0.00453315]
[1768453127643,0.83707442,3304.9,3303.9,0.00453315]
[1768453127944,0.00453315,3305.0,3303.9,0.00453315]
[1768453128241,0.83707424,3304.9,3303.9,0.00453315]
[1768453128442,0.00453315,3305.0,3303.9,0.00453315]
[1768453128750,0.83707806,3304.9,3303.9,0.00453315]
[1768453128940,0.00453315,3305.0,3303.9,0.00453315]
[1768453129141,0.83707807,3304.9,3303.9,0.00453315]
[1768453129341,0.00453315,3305.0,3303.9,0.00453315]
[1768453129542,0.83708939,3304.9,3303.9,0.00453315]
[1768453129742,0.00453315,3305.0,3303.9,0.00453315]
[1768453129943,0.83708971,3304.9,3303.9,0.00453315]
[1768453130243,0.00453315,3305.0,3303.9,0.00453315]
[1768453130438,0.8371083,3304.9,3303.9,0.00453315]
[1768453130642,0.00453315,3305.0,3303.9,0.00453315]
[1768453130841,0.83710846,3304.9,3303.9,0.00453315]
[1768453131143,0.00453315,3305.0,3303.9,0.00453315]
[1768453131345,0.83712543,3304.9,3303.9,0.00453315]
[1768453131643,0.00453315,3305.0,3303.9,0.00453315]
[1768453131843,0.83712541,3304.9,3303.9,0.00453315]
[1768453132045,0.00453315,3305.0,3303.9,0.00453315]
[1768453132245,0.83712536,3304.9,3303.9,0.00453315]
[1768453132544,0.00453315,3305.0,3303.9,0.00453315]
[1768453132844,0.83712856,3304.9,3303.9,0.00453315]
[1768453133046,0.00453315,3305.0,3303.9,0.00453315]
[1768453133248,0.83712856,3304.9,3303.9,0.00453315]
[1768453133450,0.00453315,3305.0,3303.9,0.00453315]
[1768453133650,0.83711999,3304.9,3303.9,0.00453315]
[1768453133956,0.00453315,3305.0,3303.9,0.00453315]
[1768453134259,0.83711999,3304.9,3303.9,0.00453315]
[1768453134556,0.00453315,3305.0,3303.9,0.00453315]
[1768453134757,0.83711459,3304.9,3303.9,0.00453315]
[1768453134956,0.00453315,3305.0,3303.9,0.00453315]
[1768453135158,0.83711459,3304.9,3303.9,0.00453315]
[1768453135360,0.00453315,3305.0,3303.9,0.00453315]
[1768453135556,0.83710457,3304.9,3303.9,0.00453315]
[1768453135857,0.00453315,3305.0,3303.9,0.00453315]
[1768453136054,0.83710323,3304.9,3303.9,0.00453315]
[1768453136256,0.00453315,3305.0,3303.9,0.00453315]
[1768453136454,0.8370987,3304.9,3303.9,0.00453315]
[1768453136753,0.00453315,3305.0,3303.9,0.00453315]
[1768453136954,0.83709774,3304.9,3303.9,0.00453315]
[1768453137153,0.00453315,3305.0,3303.9,0.00453315]
[1768453137359,0.83709445,3304.9,3303.9,0.00453315]
[1768453137660,0.00453315,3305.0,3303.9,0.00453315]
[1768453137960,0.83709452,3304.9,3303.9,0.00453315]
[1768453138159,0.00453315,3305.0,3303.9,0.00453315]
[1768453138361,0.83709448,3304.9,3303.9,0.00453315]
[1768453138661,0.00453315,3305.0,3303.9,0.00453315]
[1768453138855,0.83709448,3304.9,3303.9,0.00453315]
[1768453139055,0.00453315,3305.0,3303.9,0.00453315]
[1768453139355,0.83709448,3304.9,3303.9,0.00453315]
[1768453139552,0.00453315,3305.0,3303.9,0.00453315]
[1768453139753,0.83709632,3304.9,3303.9,0.00453315]
[1768453140052,0.00453315,3305.0,3303.9,0.00453315]
[1768453140252,0.83709632,3304.9,3303.9,0.00453315]
[1768453140452,0.00453315,3305.0,3303.9,0.00453315]
[1768453140755,0.83710304,3304.9,3303.9,0.00453315]
[1768453140949,0.00453315,3305.0,3303.9,0.00453315]
[1768453141149,0.83710287,3304.9,3303.9,0.00453315]
[1768453141356,0.00453315,3305.0,3303.9,0.00453315]
[1768453141545,0.83720932,3304.9,3303.9,0.00453315]
[1768453141756,0.00453315,3305.0,3303.9,0.00453315]
[1768453141955,0.83722555,3304.9,3303.9,0.00453315]
[1768453142156,0.00453315,3305.0,3303.9,0.00453315]
[1768453142355,0.8373682,3304.9,3303.9,0.00453315]
[1768453142555,0.83738267,3304.8,3303.9,0.00453315]
[1768453142760,1.35822257,3305.0,3303.9,0.00453315]
[1768453142961,0.96939816,3304.9,3303.9,0.00453315]
[1768453143158,0.83738269,3304.8,3303.9,0.00453315]
[1768453143355,0.13201547,3304.9,3303.9,0.00453315]
[1768453143560,0.83758869,3304.8,3303.9,0.00453315]
[1768453143759,0.83758869,3304.7,3303.9,0.00453315]
[1768453143960,0.83758869,3304.6,3303.9,0.00453315]
[1768453144160,0.13201547,3304.9,3303.9,0.00453315]
[1768453144359,0.8480206,3304.8,3303.9,0.00453315]
[1768453144660,0.8480206,3304.7,3303.9,0.00453315]
[1768453144862,0.8480206,3304.6,3303.9,0.00453315]
[1768453145058,0.13201547,3304.9,3303.9,0.00453315]
[1768453145357,0.8479597,3304.8,3303.9,0.00453315]
[1768453145663,0.8479597,3304.7,3303.9,0.00453315]
[1768453145864,1.98901547,3304.9,3303.9,0.00453315]
[1768453145865,0.8479597,3304.6,3303.9,0.00453315]
[1768453146061,1.98901547,3304.9,3303.9,0.00453315]
[1768453146265,0.84794463,3304.8,3303.9,0.00453315]
[1768453146459,0.84794463,3304.7,3303.9,0.00453315]
[1768453146661,0.84794463,3304.6,3303.9,0.00453315]
[1768453146862,1.98901547,3304.9,3303.9,0.00453315]
[1768453147066,0.84793663,3304.8,3303.9,0.00453315]
[1768453147365,0.84793663,3304.7,3303.9,0.00453315]
[1768453147666,0.84793663,3304.6,3303.9,0.00453315]
[1768453147863,1.98901547,3304.9,3303.9,0.00453315]
[1768453148064,0.84794302,3304.8,3303.9,0.00453315]
[1768453148257,0.84794302,3304.7,3303.9,0.00453315]
[1768453148458,0.84794302,3304.6,3303.9,0.00453315]
[1768453148760,1.98901547,3304.9,3303.9,0.00453315]
[1768453148959,0.8479618,3304.8,3303.9,0.00453315]
[1768453149160,0.8479618,3304.7,3303.9,0.00453315]
[1768453149464,0.8479618,3304.6,3303.9,0.00453315]
[1768453149667,1.98901547,3304.9,3303.9,0.00453315]
[1768453149858,0.84794097,3304.8,3303.9,0.00453315]
[1768453150062,0.84794097,3304.7,3303.9,0.00453315]
[1768453150261,0.84794097,3304.6,3303.9,0.00453315]
[1768453150564,1.98901547,3304.9,3303.9,0.00453315]
[1768453150767,0.84792611,3304.8,3303.9,0.00453315]
[1768453150959,0.84792611,3304.7,3303.9,0.00453315]
[1768453151161,0.84792611,3304.6,3303.9,0.00453315]
[1768453151361,1.98901547,3304.9,3303.9,0.00453315]
[1768453151561,0.8479047,3304.8,3303.9,0.00453315]
[1768453151762,0.8479047,3304.7,3303.9,0.00453315]
[1768453151965,0.8479047,3304.6,3303.9,0.00453315]
[1768453152167,1.98901547,3304.9,3303.9,0.00453315]
[1768453152363,0.84789823,3304.8,3303.9,0.00453315]
[1768453152566,0.84789823,3304.7,3303.9,0.00453315]
[1768453152767,0.84789823,3304.6,3303.9,0.00453315]
[1768453152971,1.98901547,3304.9,3303.9,0.00453315]
[1768453153167,0.84788644,3304.8,3303.9,0.00453315]
[1768453153468,0.84788644,3304.7,3303.9,0.00453315]
[1768453153769,0.00453315,3305.0,3303.9,0.00453315]
[1768453154065,0.84782854,3304.9,3303.9,0.00453315]
[1768453154268,0.84782854,3304.8,3303.9,0.00453315]
[1768453154469,0.84782854,3304.7,3303.9,0.00453315]
[1768453154767,0.00453315,3305.0,3303.9,0.00453315]
[1768453154967,0.84783235,3304.9,3303.9,0.00453315]
[1768453155269,0.84783235,3304.8,3303.9,0.00453315]
[1768453155469,0.84783235,3304.7,3303.9,0.00453315]
[1768453155670,0.00453315,3305.0,3303.9,0.00453315]
[1768453155871,0.84783633,3304.9,3303.9,0.00453315]
[1768453156055,0.84783633,3304.8,3303.9,0.00453315]
[1768453156256,0.84783633,3304.7,3303.9,0.00453315]
[1768453156456,0.00453315,3305.0,3303.9,0.00453315]
[1768453156668,0.84784228,3304.9,3303.9,0.00453315]
[1768453156869,0.84784228,3304.8,3303.9,0.00453315]
[1768453157055,0.84784228,3304.7,3303.9,0.00453315]
[1768453157360,0.00453315,3305.0,3303.9,0.00453315]
[1768453157659,0.84784914,3304.9,3303.9,0.00453315]
[1768453157856,0.84784914,3304.8,3303.9,0.00453315]
[1768453158169,0.84784914,3304.7,3303.9,0.00453315]
[1768453158371,0.00453315,3305.0,3303.9,0.00453315]
[1768453158668,0.84785634,3304.9,3303.9,0.00453315]
[1768453158872,0.00453315,3305.0,3303.9,0.00453315]
[1768453159058,0.84783758,3304.9,3303.9,0.00453315]
[1768453159261,0.00453315,3305.0,3303.9,0.00453315]
[1768453159472,0.8477526,3304.9,3303.9,0.00453315]
[1768453159673,0.00453315,3305.0,3303.9,0.00453315]
[1768453159975,0.84775268,3304.9,3303.9,0.00453315]
[1768453160177,0.00453315,3305.0,3303.9,0.00453315]
[1768453160369,0.84774704,3304.9,3303.9,0.00453315]
[1768453160570,0.00453315,3305.0,3303.9,0.00453315]
[1768453160780,0.84768101,3304.9,3303.9,0.00453315]
[1768453161078,0.00453315,3305.0,3303.9,0.00453315]
[1768453161278,0.84768101,3304.9,3304.0,1.22173047]
[1768453161578,0.00453315,3305.0,3304.0,1.22173047]
[1768453162273,0.13692941,3305.7,3304.6,1.22173047]
[1768453162476,0.84734361,3305.6,3304.2,1.22173047]
[1768453162666,2.06907408,3305.5,3304.2,1.22173047]
[1768453162868,0.84734361,3305.4,3304.2,1.22173047]
[1768453163069,0.84734361,3305.3,3304.2,1.22173047]
[1768453163277,1.22173047,3305.5,3304.2,1.22173047]
[1768453163476,0.00453315,3305.1,3304.2,1.22173047]
[1768453164077,0.13692941,3305.7,3304.4,1.22173047]
[1768453164375,0.84701074,3305.6,3304.4,1.22173047]
[1768453164580,1.22173047,3305.4,3304.2,0.13920436]
[1768453165168,0.00453315,3305.1,3304.2,0.13920436]
[1768453171284,1.22626362,3305.1,3303.9,0.00453315]
[1768453171669,0.13848051,3305.0,3303.9,0.00453315]
[1768453171870,1.22173047,3304.7,3303.9,0.00453315]
[1768453172674,1.36021098,3304.9,3303.9,0.00453315]
[1768453172880,0.84607193,3304.8,3303.9,0.00453315]
[1768453173183,1.36021098,3304.9,3303.9,0.00453315]
[1768453173372,0.84607176,3304.8,3303.9,0.00453315]
[1768453173682,1.36021098,3304.9,3303.9,0.00453315]
[1768453173974,0.83934158,3304.8,3303.9,0.00453315]
[1768453174175,0.00453315,3305.1,3303.9,1.22626362]
[1768453174382,0.83933747,3305.0,3303.9,1.22626362]
[1768453174678,0.00453315,3305.1,3303.9,1.22626362]
[1768453174879,0.83931565,3305.0,3303.9,1.22626362]
[1768453175079,0.00453315,3305.1,3303.9,1.22626362]
[1768453175271,0.83931568,3305.0,3303.9,1.22626362]
[1768453175472,1.22173047,3304.8,3303.9,0.00453315]
[1768453177684,0.13848051,3305.0,3303.9,0.00453315]
[1768453177685,1.22173047,3304.6,3303.9,0.00453315]
[1768453178985,1.22173047,3304.8,3303.9,0.00453315]
[1768453179385,1.22173047,3304.6,3303.9,0.00453315]
[1768453180290,1.22173047,3304.4,3303.9,0.00453315]
[1768453180481,1.22173047,3304.4,3303.9,1e-08]
[1768453180988,0.13848051,3304.3,3303.9,1e-08]
[1768453181190,1.22173047,3304.0,3303.5,0.00374504]
[1768453181391,1.2245743,3304.0,3303.5,0.00374504]
[1768453183296,0.00284383,3304.0,3303.5,0.00374504]
[1768453184686,1.22173047,3303.8,3302.5,0.13920436]
[1768453184885,0.00284383,3304.0,3302.7,1.22173047]
[1768453184886,1.2245743,3304.0,3302.7,1.22173047]
[1768453185487,0.13848051,3306.2,3304.0,0.13920436]
[1768453185682,0.13848051,3306.2,3304.9,1.22173047]
[1768453186085,1.22173047,3306.1,3304.8,1.22173047]
[1768453186285,1.22173047,3305.8,3304.6,1.22627056]
[1768453186485,1.22454991,3305.8,3304.6,0.00834699]
[1768453186994,1.22173047,3305.3,3304.6,0.00834699]
[1768453187784,1.22173047,3305.1,3304.6,0.00834699]
[1768453188093,1.22173047,3305.1,3303.9,0.13920436]
[1768453188094,1.22173047,3305.1,3303.9,1.36093483]
[1768453188590,1.22173047,3305.1,3303.9,0.13920436]
[1768453188985,1.22173047,3305.1,3303.9,0.14264446]
[1768453189990,1.22173047,3305.4,3304.0,1.22173047]
[1768453190186,0.00454009,3305.5,3304.0,1.22173047]
[1768453190490,0.00454009,3305.5,3304.2,1.22173047]
[1768453191193,0.00454009,3305.5,3304.3,0.13486181]
[1768453191392,0.13865607,3306.8,3305.4,1.22173047]
[1768453191601,1.22173047,3306.6,3305.2,1.22173047]
[1768453191789,1.22173047,3306.3,3305.0,1.22173047]
[1768453191989,0.13865607,3307.2,3305.9,1.22173047]
[1768453192185,0.13865607,3307.5,3305.8,1.22173047]
[1768453192395,1.22173047,3307.4,3306.0,1.22173047]
[1768453192591,0.00454009,3307.0,3306.3,0.00454009]
[1768453192796,0.00454009,3307.0,3306.3,0.00801664]
[1768453193095,0.00281944,3306.9,3306.3,0.00801664]
[1768453193302,0.00281944,3306.8,3306.3,0.00801664]
[1768453193486,0.00281944,3306.9,3306.3,0.00801664]
[1768453193687,0.00281944,3306.8,3306.3,0.00801664]
[1768453194195,0.00281944,3306.7,3306.3,0.00801664]
[1768453194496,0.00281944,3306.8,3306.3,0.00801664]
[1768453194998,0.00281944,3306.7,3306.3,0.00801664]
[1768453195195,0.00281944,3306.8,3306.3,0.00801664]
[1768453195595,0.00281944,3306.7,3306.3,0.00801664]
[1768453195806,0.00281944,3306.8,3306.3,0.00801664]
[1768453196601,0.00281944,3306.7,3306.3,0.00801664]
[1768453196805,0.00281944,3306.8,3306.3,0.00801664]
[1768453197292,0.00281944,3306.7,3306.3,0.00801664]
[1768453197496,0.00281944,3306.8,3306.3,0.00801664]
[1768453198003,0.00281944,3306.7,3306.3,0.00801664]
[1768453198300,0.00281944,3306.8,3306.3,0.00801664]
[1768453198803,0.00281944,3306.7,3306.3,0.00801664]
[1768453199098,0.00281944,3306.8,3306.3,0.00801664]
[1768453199397,1.22173047,3306.9,3306.3,0.00801664]
[1768453199810,0.00281944,3306.7,3306.3,0.00801664]
[1768453200306,0.00281944,3306.6,3306.3,0.00801664]
[1768453200599,0.00454009,3307.0,3306.3,0.00801664]
[1768453200600,0.00281944,3306.7,3306.3,0.00801664]
[1768453200805,1.22173047,3306.6,3305.3,0.13486181]
[1768453201194,1.22173047,3306.3,3305.3,0.13486181]
[1768453201597,1.22173047,3306.5,3305.3,0.13486181]
[1768453201802,1.22173047,3306.5,3305.3,0.13763859]
[1768453201997,1.36492663,3307.0,3305.6,0.00454009]
[1768453202205,1.22173047,3306.5,3305.6,0.00454009]
[1768453202604,1.22454991,3306.3,3305.6,0.00454009]
[1768453202808,1.22173047,3306.3,3305.6,0.00454009]
[1768453203105,0.00281944,3306.2,3305.6,0.00454009]
[1768453204698,0.00281944,3306.0,3305.6,0.00454009]
[1768453204893,1.22173047,3306.0,3305.3,0.00277678]
[1768453205096,1.22173047,3305.5,3304.4,0.13486181]
[1768453205802,0.00454009,3305.3,3304.4,0.13486181]
[1768453206203,0.00454009,3305.3,3304.4,0.13730546]
[1768453207909,0.00454009,3305.3,3304.6,0.13486181]
[1768453208302,0.00735953,3305.3,3304.6,0.13486181]
[1768453213403,0.00281944,3305.2,3304.6,0.13486181]
[1768453213602,0.00735953,3305.3,3304.6,0.13486181]
[1768453213817,0.00281944,3305.2,3304.6,0.13486181]
[1768453216817,0.00281944,3305.2,3304.4,0.00244365]
[1768453219821,0.00281944,3305.2,3304.4,0.13730546]
[1768453220324,0.00454009,3305.3,3304.4,0.13730546]
[1768453223733,0.14390078,3307.0,3304.9,0.14416537]
[1768453223938,1.36546448,3307.0,3305.1,0.14416537]
[1768453224746,0.00454009,3306.4,3305.7,0.00454009]
[1768453230646,0.00454009,3306.4,3305.7,0.14870546]
[1768453230951,0.00313575,3307.5,3306.2,0.14416537]
[1768453232037,0.00313575,3307.5,3306.3,0.14416537]
[1768453232945,0.00454009,3307.2,3306.3,0.14416537]
[1768453233248,0.00313575,3307.5,3306.3,0.14416537]
[1768453234348,0.00454009,3307.2,3306.3,0.14416537]
[1768453234736,0.00313575,3307.5,3306.3,0.14416537]
[1768453235644,0.00454009,3307.2,3306.3,0.14416537]
[1768453236553,0.00454009,3307.2,3305.7,0.14870546]
[1768453236749,0.29965087,3307.2,3305.7,0.00454009]
[1768453236945,0.14390078,3307.1,3305.7,0.00454009]
[1768453239252,0.00454009,3307.2,3305.7,0.14870546]
[1768453242744,0.14844087,3307.2,3305.7,0.00454009]
[1768453246861,0.00454009,3307.2,3305.7,0.14870546]
[1768453253870,0.14969986,3307.2,3305.7,0.00454009]
[1768453254162,0.15123,3306.9,3305.7,0.00454009]